bitfinex-derivatives/quotes_BTCF0:USTF0_20250505
["timestamp","ask_amount","ask_price","bid_price","bid_amount"]
[1746424524994,0.51691924,94701.0,94700.0,0.3949826]
[1746424525194,0.54971924,94701.0,94700.0,0.3949826]
[1746424526197,0.54971924,94701.0,94700.0,0.3638826]
[1746424528499,0.54971924,94701.0,94700.0,0.3628826]
[1746424529889,0.49700832,94701.0,94700.0,0.3628826]
[1746424533085,0.4442974,94701.0,94700.0,0.2428826]
[1746424533595,0.4757774,94701.0,94700.0,0.2428826]
[1746424534190,0.4757774,94701.0,94700.0,0.3628826]
[1746424534892,0.4114974,94701.0,94700.0,0.3628826]
[1746424535200,0.4114974,94701.0,94700.0,0.7236826]
[1746424535201,0.3785974,94701.0,94700.0,0.7236826]
[1746424535999,0.32588648,94701.0,94700.0,0.7236826]
[1746424538906,0.23365608,94701.0,94700.0,0.7236826]
[1746424539105,0.18094516,94701.0,94700.0,0.7236826]
[1746424540095,0.14102766,94701.0,94700.0,0.7236826]
[1746424541099,0.14102766,94701.0,94700.0,0.8292786]
[1746424542105,0.08831674,94701.0,94700.0,0.8292786]
[1746424543209,0.08831674,94701.0,94700.0,0.7236826]
[1746424543504,0.08831674,94701.0,94700.0,0.8292786]
[1746424544297,0.06428,94725.0,94715.0,0.2111492]
[1746424544495,0.0302,94722.0,94715.0,0.5719492]
[1746424544695,0.0015,94730.0,94724.0,0.0527817]
[1746424545003,0.0611,94728.0,94724.0,0.0527817]
[1746424545205,0.04148908,94728.0,94727.0,0.2111224]
[1746424545393,0.04148908,94728.0,94727.0,0.23432427]
[1746424546207,0.04148908,94728.0,94727.0,0.35432427]
[1746424546907,0.04148908,94728.0,94727.0,0.35532427]
[1746424548208,0.05459758,94730.0,94729.0,0.211118]
[1746424549208,0.05459758,94730.0,94729.0,0.331118]
[1746424549610,0.05459758,94730.0,94729.0,0.332118]
[1746424551201,0.00192608,94730.0,94729.0,0.332118]
[1746424554214,0.01235458,94735.0,94734.0,0.2111068]
[1746424554512,0.07663458,94735.0,94734.0,0.20086479]
[1746424555112,0.07663458,94735.0,94734.0,0.32086479]
[1746424555704,0.07663458,94735.0,94734.0,0.32186479]
[1746424556317,0.07663458,94735.0,94734.0,0.33767107]
[1746424557310,0.02396308,94735.0,94734.0,0.33767107]
[1746424557511,0.05486308,94735.0,94734.0,0.33767107]
[1746424559012,0.26596768,94735.0,94734.0,0.33767107]
[1746424559821,0.2420046,94735.0,94734.0,0.33767107]
[1746424560113,0.4062446,94735.0,94734.0,0.33767107]
[1746424560315,0.3535731,94735.0,94734.0,0.33767107]
[1746424562616,0.3535731,94735.0,94734.0,0.32186479]
[1746424563315,0.30113178,94735.0,94734.0,0.32186479]
[1746424564021,0.66193178,94735.0,94734.0,0.32186479]
[1746424564209,0.30113178,94735.0,94734.0,0.32186479]
[1746424564518,0.66193178,94735.0,94734.0,0.31128479]
[1746424566411,0.52527018,94735.0,94734.0,0.31128479]
[1746424566613,0.73637478,94735.0,94734.0,0.31128479]
[1746424569015,0.63637478,94735.0,94734.0,0.31128479]
[1746424569404,0.58370328,94735.0,94734.0,0.31128479]
[1746424571118,0.58370328,94735.0,94734.0,0.121]
[1746424571419,0.68370328,94735.0,94734.0,0.121]
[1746424572318,0.68370328,94735.0,94734.0,0.3321068]
[1746424572620,0.69527178,94735.0,94734.0,0.3321068]
[1746424574620,0.69527178,94735.0,94734.0,0.3215268]
[1746424575625,0.64260028,94735.0,94734.0,0.3215268]
[1746424578617,0.58992878,94735.0,94734.0,0.3215268]
[1746424581523,0.53725728,94735.0,94734.0,0.3215268]
[1746424581823,0.7361446,94735.0,94734.0,0.3215268]
[1746424583819,0.7361446,94735.0,94734.0,0.33701464]
[1746424584516,0.0115685,94735.0,94734.0,0.33701464]
[1746424584724,0.2226731,94735.0,94734.0,0.35933464]
[1746424587632,0.2342416,94735.0,94734.0,0.35933464]
[1746424590633,0.1815701,94735.0,94734.0,0.35933464]
[1746424592425,0.06424,94735.0,94734.0,0.35933464]
[1746424592928,0.2753446,94735.0,94734.0,0.35933464]
[1746424593230,0.06424,94735.0,94734.0,0.35933464]
[1746424593730,0.0115685,94735.0,94734.0,0.35933464]
[1746424594827,0.0115685,94735.0,94734.0,0.34875464]
[1746424595030,0.2226731,94735.0,94734.0,0.34875464]
[1746424596825,0.1700016,94735.0,94734.0,0.34875464]
[1746424599735,0.1173301,94735.0,94734.0,0.34875464]
[1746424600536,0.1173301,94735.0,94734.0,0.3332668]
[1746424602840,0.1170152,94737.0,94734.0,0.3860431]
[1746424603039,0.1170152,94737.0,94736.0,0.2111024]
[1746424603040,0.3281176,94737.0,94736.0,0.2111024]
[1746424604040,0.3281176,94737.0,94736.0,0.2416024]
[1746424604240,0.3281176,94737.0,94736.0,0.3626024]
[1746424604742,0.3281176,94737.0,94736.0,0.3520224]
[1746424605339,0.3300776,94737.0,94736.0,0.3520224]
[1746424605742,0.2773024,94737.0,94736.0,0.3520224]
[1746424605936,0.2246309,94737.0,94736.0,0.3520224]
[1746424608845,0.1719594,94737.0,94736.0,0.3520224]
[1746424609345,0.0662,94737.0,94736.0,0.3520224]
[1746424609740,0.0662,94737.0,94736.0,0.36752652]
[1746424611943,0.3608,94744.0,94743.0,0.2110868]
[1746424612135,0.427,94744.0,94743.0,0.3310868]
[1746424612544,0.427,94744.0,94743.0,0.34659092]
[1746424612735,0.427,94744.0,94743.0,0.41249092]
[1746424613353,0.427,94744.0,94743.0,0.41349092]
[1746424613755,0.4511661,94744.0,94743.0,0.41349092]
[1746424614953,0.3984946,94744.0,94743.0,0.41349092]
[1746424616448,0.3984946,94744.0,94743.0,0.3979868]
[1746424616946,0.3322946,94744.0,94743.0,0.3979868]
[1746424617147,0.3984946,94744.0,94743.0,0.3979868]
[1746424617454,0.3984946,94744.0,94743.0,0.41346077]
[1746424617954,0.0903661,94744.0,94743.0,0.41346077]
[1746424618350,0.0903661,94744.0,94743.0,0.16937397]
[1746424618556,0.4014507,94744.0,94743.0,0.16937397]
[1746424618753,0.4014507,94744.0,94743.0,0.1539]
[1746424619056,0.4659507,94744.0,94743.0,0.1539]
[1746424621153,0.4417846,94744.0,94743.0,0.1539]
[1746424622954,0.4091846,94744.0,94743.0,0.1539]
[1746424623153,0.4419846,94744.0,94743.0,0.1539]
[1746424623553,0.4419846,94744.0,94743.0,0.16985963]
[1746424624057,0.3893131,94744.0,94743.0,0.16985963]
[1746424627057,0.3366416,94744.0,94743.0,0.16985963]
[1746424630355,0.2309,94744.0,94743.0,0.16985963]
[1746424630661,0.4419846,94744.0,94743.0,0.16985963]
[1746424631663,0.3757846,94744.0,94743.0,0.16985963]
[1746424631866,0.4419846,94744.0,94743.0,0.16985963]
[1746424633168,0.3892846,94744.0,94743.0,0.16985963]
[1746424633463,0.4100846,94744.0,94743.0,0.16985963]
[1746424635563,0.7708846,94744.0,94743.0,0.16985963]
[1746424636169,0.7182131,94744.0,94743.0,0.16985963]
[1746424639364,0.6655416,94744.0,94743.0,0.16985963]
[1746424641764,0.5993416,94744.0,94743.0,0.16985963]
[1746424642066,0.6671016,94744.0,94743.0,0.16985963]
[1746424642266,0.6144301,94744.0,94743.0,0.16985963]
[1746424642467,0.2536301,94744.0,94743.0,0.16985963]
[1746424642660,0.6144301,94744.0,94743.0,0.16985963]
[1746424645269,0.52856,94744.0,94743.0,0.16985963]
[1746424645467,0.7396446,94744.0,94743.0,0.16985963]
[1746424648368,0.6396446,94744.0,94743.0,0.16985963]
[1746424649069,0.6396446,94744.0,94743.0,0.20115963]
[1746424651473,0.5869731,94744.0,94743.0,0.20115963]
[1746424654391,0.5343016,94744.0,94743.0,0.20115963]
[1746424654965,0.4665416,94744.0,94743.0,0.20115963]
[1746424655173,0.5343016,94744.0,94743.0,0.20115963]
[1746424656873,0.5343016,94744.0,94743.0,0.41224643]
[1746424657575,0.4816301,94744.0,94743.0,0.41224643]
[1746424659977,0.2788446,94744.0,94743.0,0.41224643]
[1746424660571,0.2261731,94744.0,94743.0,0.41224643]
[1746424663482,0.1735016,94744.0,94743.0,0.41224643]
[1746424666581,0.06776,94744.0,94743.0,0.41224643]
[1746424666778,0.2788446,94744.0,94743.0,0.41224643]
[1746424669578,0.2261731,94744.0,94743.0,0.41224643]
[1746424672684,0.2417816,94744.0,94743.0,0.41224643]
[1746424673384,0.2120801,94746.0,94745.0,0.2110823]
[1746424673580,0.06928,94746.0,94745.0,0.2110823]
[1746424673882,0.2803601,94746.0,94745.0,0.22704193]
[1746424674183,0.2803601,94746.0,94745.0,0.34704193]
[1746424674984,0.06928,94746.0,94745.0,0.34704193]
[1746424675373,0.2803601,94746.0,94745.0,0.34804193]
[1746424675779,0.211062,94755.0,94745.0,0.13695963]
[1746424675978,0.2110645,94753.0,94746.0,0.16852923]
[1746424676187,0.2638306,94753.0,94746.0,0.28852923]
[1746424676383,0.2638306,94753.0,94748.0,0.0527689]
[1746424676582,0.2638306,94753.0,94752.0,0.2076184]
[1746424676783,0.2793436,94754.0,94753.0,0.2110645]
[1746424677184,0.2793436,94754.0,94753.0,0.3310645]
[1746424677375,0.2793436,94754.0,94753.0,0.34702413]
[1746424678186,0.2793436,94754.0,94753.0,0.34802413]
[1746424678685,0.2266721,94754.0,94753.0,0.34802413]
[1746424680685,0.2266721,94754.0,94753.0,0.36469747]
[1746424681082,0.2266721,94754.0,94753.0,0.15363297]
[1746424681283,0.2266721,94754.0,94753.0,0.36469747]
[1746424681793,0.2422806,94754.0,94753.0,0.36469747]
[1746424681982,0.2422806,94754.0,94753.0,0.34802413]
[1746424683384,0.2422806,94754.0,94753.0,0.3648821]
[1746424684286,0.2422806,94754.0,94753.0,0.3543021]
[1746424684792,0.2422806,94754.0,94753.0,0.1432376]
[1746424684793,0.1896091,94754.0,94753.0,0.1432376]
[1746424685792,0.2231091,94754.0,94753.0,0.1432376]
[1746424686592,0.1896091,94754.0,94753.0,0.1432376]
[1746424687990,0.06828,94754.0,94753.0,0.1432376]
[1746424688589,0.2793454,94754.0,94753.0,0.3543021]
[1746424690793,0.2266739,94754.0,94753.0,0.1432376]
[1746424692598,0.2266739,94754.0,94753.0,0.3543021]
[1746424693295,0.2625739,94754.0,94753.0,0.3543021]
[1746424693895,0.2804624,94754.0,94753.0,0.3543021]
[1746424694397,0.2804624,94754.0,94753.0,0.3437221]
[1746424695690,0.2445624,94754.0,94753.0,0.3437221]
[1746424696993,0.1918909,94754.0,94753.0,0.3437221]
[1746424697399,0.2816223,94754.0,94753.0,0.3437221]
[1746424699895,0.2289508,94754.0,94753.0,0.3437221]
[1746424702601,0.2110623,94754.0,94753.0,0.3437221]
[1746424702994,0.1583908,94754.0,94753.0,0.3437221]
[1746424704403,0.1583908,94754.0,94753.0,0.3331421]
[1746424705603,0.2816202,94756.0,94755.0,0.2110601]
[1746424706006,0.2289487,94756.0,94755.0,0.22701973]
[1746424706301,0.2289487,94756.0,94755.0,0.41671973]
[1746424707202,0.2289487,94756.0,94755.0,0.41771973]
[1746424708602,0.0178885,94756.0,94755.0,0.41771973]
[1746424709202,0.1583863,94756.0,94755.0,0.47048433]
[1746424709406,0.1583863,94756.0,94755.0,0.4545247]
[1746424711105,0.5191863,94756.0,94755.0,0.4545247]
[1746424711407,0.212539,94765.0,94764.0,0.21104]
[1746424712198,0.1598675,94765.0,94764.0,0.40124]
[1746424713603,0.1598675,94765.0,94764.0,0.40224]
[1746424714803,0.1598675,94765.0,94764.0,0.41766051]
[1746424714999,0.43136,94766.0,94765.0,0.2110378]
[1746424715193,0.3786885,94766.0,94765.0,0.2823378]
[1746424715407,0.5897241,94766.0,94765.0,0.2823378]
[1746424715608,0.5897241,94766.0,94765.0,0.29775831]
[1746424716109,0.5191641,94766.0,94765.0,0.41775831]
[1746424716303,0.0368,94774.0,94773.0,0.21102]
[1746424716504,0.6238172,94775.0,94774.0,0.2110177]
[1746424716703,0.2110172,94775.0,94774.0,0.2110177]
[1746424717101,0.2478172,94775.0,94774.0,0.3310177]
[1746424717404,0.2478172,94775.0,94774.0,0.34709455]
[1746424717907,0.25565127,94775.0,94774.0,0.34809455]
[1746424720509,0.21885127,94775.0,94774.0,0.34809455]
[1746424722411,0.25535127,94775.0,94774.0,0.34809455]
[1746424729015,0.25535127,94775.0,94774.0,0.33752455]
[1746424732913,0.2475172,94775.0,94774.0,0.33752455]
[1746424733118,0.2120146,94776.0,94774.0,0.13707685]
[1746424733517,0.2444155,94775.0,94774.0,0.121]
[1746424734424,0.001,94776.0,94774.0,0.225512]
[1746424734609,0.001,94776.0,94774.0,0.226512]
[1746424735113,0.001,94776.0,94775.0,0.09362985]
[1746424735518,0.00529164,94777.0,94775.0,0.105512]
[1746424735815,0.3608,94839.0,94801.0,0.5273892]
[1746424736007,0.0358,94835.0,94823.0,0.0527271]
[1746424736206,0.0358,94835.0,94823.0,0.1727271]
[1746424736406,0.0722,94834.0,94824.0,0.105456]
[1746424736612,0.0358,94835.0,94824.0,0.105456]
[1746424736917,0.0358,94835.0,94827.0,0.17690122]
[1746424737217,0.0015,94835.0,94827.0,0.29690122]
[1746424737819,0.40017188,94828.0,94827.0,0.12]
[1746424738007,0.41507188,94828.0,94827.0,0.12]
[1746424738212,0.34287188,94828.0,94827.0,0.12]
[1746424738411,2.30137188,94828.0,94827.0,0.12]
[1746424738621,2.30137188,94828.0,94827.0,0.121]
[1746424739120,2.40137188,94828.0,94827.0,0.121]
[1746424739513,0.36240038,94828.0,94827.0,0.6926998]
[1746424739816,0.04440278,94828.0,94827.0,0.6926998]
[1746424740018,0.11660278,94828.0,94827.0,0.7981558]
[1746424740721,0.04440278,94828.0,94827.0,0.7981558]
[1746424740922,0.0343,94828.0,94827.0,0.7981558]
[1746424741121,0.2451976,94828.0,94827.0,0.7981558]
[1746424741322,0.3211976,94828.0,94827.0,0.7981558]
[1746424741510,0.1103,94828.0,94827.0,0.7981558]
[1746424742425,0.0576285,94828.0,94827.0,0.7981558]
[1746424742624,0.0576285,94828.0,94827.0,0.6926998]
[1746424743017,0.0076,94829.0,94828.0,0.2108976]
[1746424743322,0.0076,94829.0,94828.0,0.3163536]
[1746424743822,0.2108976,94828.0,94827.0,0.121]
[1746424744127,0.2109154,94820.0,94819.0,0.0527292]
[1746424744624,0.2109243,94816.0,94815.0,0.5717265]
[1746424744826,0.7089243,94816.0,94815.0,0.5717265]
[1746424745130,0.7089243,94816.0,94815.0,0.6917265]
[1746424745521,0.6562528,94816.0,94815.0,0.6917265]
[1746424745826,0.6562528,94816.0,94815.0,0.70821954]
[1746424746026,0.6562528,94816.0,94815.0,0.13649304]
[1746424746423,0.6893528,94816.0,94815.0,0.13649304]
[1746424746819,0.2109554,94802.0,94796.0,0.3608]
[1746424747020,0.2109576,94801.0,94800.0,0.2109583]
[1746424747221,0.6329599,94800.0,94796.0,0.3608]
[1746424747415,0.7089599,94800.0,94797.0,0.2109656]
[1746424747621,2.2405599,94800.0,94798.0,0.210964]
[1746424747819,2.2405599,94800.0,94799.0,0.2125444]
[1746424748627,2.1878884,94800.0,94799.0,0.2125444]
[1746424748816,2.1888884,94800.0,94799.0,0.2135444]
[1746424749021,2.0306,94800.0,94799.0,0.2135444]
[1746424749323,2.2415599,94800.0,94799.0,0.2135444]
[1746424750228,2.2415599,94800.0,94799.0,0.3335444]
[1746424751529,2.1888884,94800.0,94799.0,0.3335444]
[1746424752426,2.2888884,94800.0,94799.0,0.3335444]
[1746424752835,2.29672608,94800.0,94799.0,0.3335444]
[1746424754131,2.19672608,94800.0,94799.0,0.3229744]
[1746424754535,2.14405458,94800.0,94799.0,0.3229744]
[1746424754840,2.24405458,94800.0,94799.0,0.3229744]
[1746424755029,2.06805458,94800.0,94799.0,0.3229744]
[1746424755239,2.14405458,94800.0,94799.0,0.3229744]
[1746424755741,0.67975458,94800.0,94799.0,0.3229744]
[1746424757640,0.62708308,94800.0,94799.0,0.3229744]
[1746424760648,0.57441158,94800.0,94799.0,0.3229744]
[1746424760948,0.61021158,94800.0,94799.0,0.3229744]
[1746424763041,0.61021158,94800.0,94799.0,0.1120123]
[1746424763242,0.61021158,94800.0,94799.0,0.3229744]
[1746424763648,0.55754008,94800.0,94799.0,0.3229744]
[1746424763948,0.59094008,94800.0,94799.0,0.3229744]
[1746424764150,0.59094008,94800.0,94799.0,0.3124044]
[1746424766747,0.46969468,94800.0,94799.0,0.3124044]
[1746424767851,0.68065458,94800.0,94799.0,0.3124044]
[1746424769746,0.62798308,94800.0,94799.0,0.3124044]
[1746424770955,0.63604128,94800.0,94799.0,0.3124044]
[1746424772753,0.66176978,94800.0,94799.0,0.3124044]
[1746424772955,0.2109977,94783.0,94782.0,0.00158257]
[1746424773255,0.3694108,94776.0,94754.0,0.3608]
[1746424773555,0.8884792,94772.0,94762.0,0.0371]
[1746424774555,0.8884792,94772.0,94763.0,0.036]
[1746424775157,0.8884792,94772.0,94771.0,0.12158274]
[1746424775558,0.8884792,94772.0,94771.0,0.13710362]
[1746424776054,0.8724077,94772.0,94771.0,0.13710362]
[1746424779059,0.8197362,94772.0,94771.0,0.13710362]
[1746424779956,0.0784,94780.0,94771.0,0.24261962]
[1746424780156,0.2110139,94778.0,94777.0,0.2110105]
[1746424780652,0.2110139,94778.0,94777.0,0.3165225]
[1746424780856,0.2110139,94778.0,94777.0,0.33204338]
[1746424781155,0.2110139,94778.0,94777.0,0.34653138]
[1746424781355,0.2894053,94780.0,94779.0,0.2110066]
[1746424781562,0.3608,94784.0,94783.0,0.2109977]
[1746424781863,0.519124,94784.0,94783.0,0.22651858]
[1746424782159,0.597524,94784.0,94783.0,0.34651858]
[1746424782359,0.3865285,94784.0,94783.0,0.34651858]
[1746424782663,0.087445,94791.0,94788.0,0.2109861]
[1746424782861,0.3421276,94790.0,94789.0,0.08762088]
[1746424783062,0.2637276,94790.0,94789.0,0.20762088]
[1746424783453,0.3421276,94790.0,94789.0,0.41860518]
[1746424784155,0.3521276,94790.0,94789.0,0.41960518]
[1746424784963,0.2993821,94790.0,94789.0,0.41960518]
[1746424785563,0.3521276,94790.0,94789.0,0.41960518]
[1746424786966,0.3521276,94790.0,94789.0,0.4040843]
[1746424787964,0.2994561,94790.0,94789.0,0.4040843]
[1746424788565,0.3339561,94790.0,94789.0,0.4040843]
[1746424789661,0.3339561,94790.0,94789.0,0.1931]
[1746424790970,0.2812846,94790.0,94789.0,0.1931]
[1746424794070,0.1756455,94790.0,94789.0,0.1931]
[1746424794672,0.3866276,94790.0,94789.0,0.1931]
[1746424796761,0.3338821,94790.0,94789.0,0.4040843]
[1746424796961,0.2993821,94790.0,94789.0,0.4040843]
[1746424797170,0.0095582,94800.0,94799.0,0.2109621]
[1746424797871,0.0095582,94800.0,94799.0,0.2840621]
[1746424798258,0.0095582,94800.0,94799.0,0.4040621]
[1746424799070,0.0095582,94800.0,94799.0,0.5095461]
[1746424799466,0.0105582,94800.0,94799.0,0.5095461]
[1746424799659,0.0025,94800.0,94799.0,0.5095461]
[1746424800066,0.0292285,94811.0,94810.0,0.2109376]
[1746424800268,0.0292285,94811.0,94810.0,0.3309376]
[1746424800474,0.0292285,94811.0,94810.0,0.4364096]
[1746424800673,0.0292285,94811.0,94810.0,0.5082096]
[1746424800868,0.00783012,94811.0,94810.0,0.5082096]
[1746424801169,0.0527283,94821.0,94820.0,0.2109131]
[1746424801768,0.0527283,94821.0,94820.0,0.22556978]
[1746424801971,0.0527283,94821.0,94820.0,0.2109131]
[1746424802165,0.0527283,94821.0,94820.0,0.34526595]
[1746424802565,2.0445984,94821.0,94820.0,0.34526595]
[1746424802763,0.0527375,94805.0,94794.0,0.01420602]
[1746424802965,0.5276547,94783.0,94780.0,0.0527508]
[1746424803172,0.8357832,94783.0,94782.0,0.33258247]
[1746424803461,0.07728,94787.0,94782.0,0.24186682]
[1746424803670,0.07728,94787.0,94786.0,0.210991]
[1746424803865,0.2109747,94794.0,94793.0,0.2109732]
[1746424804066,0.2109747,94794.0,94782.0,0.12158257]
[1746424804067,0.2109977,94783.0,94782.0,0.12158257]
[1746424804272,0.8884547,94783.0,94782.0,0.21258247]
[1746424804472,1.9919547,94783.0,94782.0,0.21258247]
[1746424804872,0.3608,94783.0,94782.0,0.21258247]
[1746424805063,0.07728,94786.0,94782.0,0.21258247]
[1746424805064,0.2109634,94799.0,94793.0,0.2109754]
[1746424805270,0.3608,94806.0,94805.0,0.2109487]
[1746424805476,0.3608,94817.0,94816.0,0.2109243]
[1746424805477,0.571722,94817.0,94816.0,0.2109243]
[1746424805671,1.675222,94817.0,94816.0,0.2109243]
[1746424805872,0.2109483,94810.0,94809.0,0.2109266]
[1746424806178,0.4749148,94815.0,94814.0,0.2109287]
[1746424806677,0.5127148,94815.0,94814.0,0.2109287]
[1746424807070,0.5127148,94815.0,94814.0,0.3309287]
[1746424807272,0.5517148,94815.0,94814.0,0.3309287]
[1746424807475,0.4779148,94815.0,94814.0,0.3309287]
[1746424807871,0.4779148,94815.0,94814.0,0.12]
[1746424808070,0.2109977,94783.0,94782.0,0.00158257]
[1746424808269,0.8884547,94783.0,94782.0,0.00158257]
[1746424808474,1.9919547,94783.0,94782.0,0.00158257]
[1746424808874,2.0664547,94783.0,94782.0,0.01709781]
[1746424809069,2.0664547,94783.0,94782.0,0.13709781]
[1746424809273,2.0137832,94783.0,94782.0,0.13709781]
[1746424809472,2.0137832,94783.0,94782.0,0.13909781]
[1746424810181,2.0147832,94783.0,94782.0,0.13709781]
[1746424812374,2.0393917,94783.0,94782.0,0.13709781]
[1746424812580,0.51358,94783.0,94782.0,0.34809771]
[1746424812784,0.3988,94783.0,94782.0,0.34809771]
[1746424813175,0.3618,94783.0,94782.0,0.45360171]
[1746424814077,0.678457,94783.0,94782.0,0.13709781]
[1746424814281,0.316657,94776.0,94745.0,0.00105546]
[1746424814484,0.9326445,94762.0,94751.0,0.052767]
[1746424814669,0.9326445,94762.0,94745.0,0.00105546]
[1746424814670,1.0099245,94762.0,94745.0,0.00105546]
[1746424814874,0.07728,94762.0,94761.0,0.2117667]
[1746424815073,0.07728,94762.0,94761.0,0.3317667]
[1746424815276,0.3608,94768.0,94767.0,0.2110333]
[1746424816185,0.3608,94768.0,94767.0,0.43655329]
[1746424816386,0.00790711,94768.0,94767.0,0.43655329]
[1746424816586,0.07728,94775.0,94774.0,0.2110177]
[1746424816886,0.07728,94775.0,94774.0,1.7110177]
[1746424817184,0.07728,94775.0,94774.0,1.8310177]
[1746424818385,0.0246085,94775.0,94774.0,1.8310177]
[1746424819690,0.03233588,94775.0,94774.0,1.8310177]
[1746424820486,0.03233588,94775.0,94774.0,1.9365297]
[1746424820882,0.03233588,94775.0,94774.0,1.9742297]
[1746424821384,0.55147498,94778.0,94777.0,0.2110111]
[1746424822077,0.55147498,94778.0,94777.0,0.3310111]
[1746424822282,0.34046438,94778.0,94777.0,0.3310111]
[1746424823187,0.55247318,94778.0,94777.0,0.3310111]
[1746424823580,0.56052369,94778.0,94777.0,0.3310111]
[1746424823781,0.34951489,94778.0,94777.0,0.3310111]
[1746424824176,0.0391,94791.0,94786.0,0.210991]
[1746424824384,0.3239485,94796.0,94795.0,0.210971]
[1746424824784,0.6406055,94796.0,94795.0,0.210971]
[1746424824986,0.9260743,94796.0,94795.0,0.210971]
[1746424825187,0.9260743,94796.0,94795.0,0.330971]
[1746424825383,0.7151055,94796.0,94795.0,0.330971]
[1746424826088,0.7228408,94796.0,94795.0,0.330971]
[1746424826682,0.7268408,94796.0,94795.0,0.330971]
[1746424826888,0.7268408,94796.0,94795.0,0.34722419]
[1746424827285,0.7228408,94796.0,94795.0,0.34722419]
[1746424827481,0.3565123,94796.0,94795.0,0.34722419]
[1746424827680,0.5674811,94796.0,94795.0,0.34722419]
[1746424830389,0.5674811,94796.0,94795.0,0.39162419]
[1746424830590,0.2962041,94796.0,94795.0,0.39162419]
[1746424832382,0.2962041,94796.0,94795.0,1.89162419]
[1746424833491,0.2435326,94796.0,94795.0,1.89162419]
[1746424834387,0.2435326,94796.0,94795.0,0.34722419]
[1746424835384,0.5601896,94796.0,94795.0,0.34722419]
[1746424836690,0.5075181,94796.0,94795.0,0.34722419]
[1746424837393,0.003,94796.0,94795.0,0.34722419]
[1746424837589,0.003,94796.0,94795.0,0.38962419]
[1746424837793,0.01109541,94796.0,94795.0,0.38962419]
[1746424837989,0.003,94796.0,94795.0,0.38962419]
[1746424839390,0.526978,94876.0,94795.0,0.38962419]
[1746424839391,0.2184992,94829.0,94828.0,0.2108976]
[1746424839591,1.0584285,94829.0,94828.0,0.2108976]
[1746424839889,1.3750855,94829.0,94828.0,1.72686749]
[1746424840096,1.3750855,94829.0,94828.0,1.84686749]
[1746424840284,1.4192855,94829.0,94828.0,1.84686749]
[1746424840488,0.0080867,94829.0,94828.0,1.88976749]
[1746424840794,0.0427,94834.0,94833.0,0.2108865]
[1746424840992,0.0427,94834.0,94833.0,0.5716865]
[1746424841292,1e-08,94836.0,94835.0,0.210882]
[1746424841492,0.0871,94859.0,94843.0,0.0527157]
[1746424841693,0.3608,94863.0,94849.0,0.07694215]
[1746424841995,1.4192285,94863.0,94862.0,0.1376388]
[1746424842195,1.7358855,94863.0,94862.0,0.1376388]
[1746424842404,1.8251855,94863.0,94862.0,0.1376388]
[1746424842696,1.9833338,94863.0,94862.0,0.1376388]
[1746424842891,1.9873338,94863.0,94862.0,0.1376388]
[1746424843087,1.9873338,94863.0,94862.0,0.2576388]
[1746424843293,1.9833338,94863.0,94862.0,0.2576388]
[1746424843493,1.9873338,94863.0,94862.0,0.2576388]
[1746424845302,1.99536679,94863.0,94862.0,0.12]
[1746424845707,1.94269529,94863.0,94862.0,0.12]
[1746424847195,0.81220599,94863.0,94813.0,0.0945323]
[1746424847395,0.2108842,94836.0,94835.0,0.2635931]
[1746424847591,0.2108842,94836.0,94835.0,0.2108731]
[1746424847800,0.210882,94835.0,94834.0,0.01648831]
[1746424848002,0.611839,94835.0,94834.0,0.01648831]
[1746424848192,0.611839,94835.0,94834.0,0.13648831]
[1746424848794,0.5591675,94835.0,94834.0,0.12]
[1746424849299,0.2636377,94826.0,94825.0,0.210902]
[1746424849495,0.2109122,94826.0,94825.0,0.22717753]
[1746424849695,0.6118692,94826.0,94825.0,0.22717753]
[1746424850303,0.6118692,94826.0,94825.0,0.34717753]
[1746424851699,0.5591977,94826.0,94825.0,0.34717753]
[1746424851899,0.0417,94826.0,94825.0,0.34717753]
[1746424852103,0.08164,94828.0,94827.0,0.2108998]
[1746424852302,0.2925376,94828.0,94827.0,0.2108998]
[1746424852494,0.08164,94828.0,94827.0,0.2108998]
[1746424852902,0.2925376,94828.0,94827.0,0.22717533]
[1746424853094,0.2925376,94828.0,94827.0,0.34717533]
[1746424853904,0.6091946,94828.0,94827.0,0.34717533]
[1746424854205,0.398297,94828.0,94827.0,0.34717533]
[1746424854399,0.316657,94828.0,94827.0,0.34717533]
[1746424854804,0.2639855,94828.0,94827.0,0.34717533]
[1746424856207,0.4748831,94828.0,94827.0,0.34717533]
[1746424857904,0.42225983,94828.0,94827.0,0.34717533]
[1746424859306,0.42225983,94828.0,94827.0,0.12]
[1746424859916,0.42225983,94828.0,94827.0,0.3308998]
[1746424860405,0.42225983,94828.0,94797.0,0.3608]
[1746424860406,1.02761823,94828.0,94797.0,0.3608]
[1746424860604,1.02761823,94828.0,94809.0,0.21251917]
[1746424860605,0.2109376,94810.0,94809.0,0.21251917]
[1746424860816,0.81211656,94810.0,94809.0,0.21251917]
[1746424861114,0.81211656,94810.0,94809.0,0.33251917]
[1746424861612,0.90391656,94810.0,94809.0,0.33251917]
[1746424861801,0.44244,94810.0,94809.0,0.33410079]
[1746424862008,0.44244,94810.0,94809.0,0.42880079]
[1746424862211,0.3608,94810.0,94809.0,0.42880079]
[1746424863011,0.5717376,94810.0,94809.0,0.42880079]
[1746424863514,0.2109376,94810.0,94809.0,0.42880079]
[1746424863915,0.2108998,94832.0,94831.0,0.2108842]
[1746424864113,0.08164,94832.0,94831.0,0.2108842]
[1746424864320,0.29300223,94832.0,94831.0,0.3308842]
[1746424864711,0.50389093,94832.0,94831.0,0.3308842]
[1746424864907,0.50389093,94832.0,94831.0,0.4255842]
[1746424865111,0.54989093,94832.0,94831.0,0.4255842]
[1746424866011,0.08264,94832.0,94831.0,0.4255842]
[1746424866213,0.29400223,94832.0,94831.0,0.4255842]
[1746424866516,0.08264,94832.0,94831.0,0.42716582]
[1746424866914,0.24090543,94832.0,94831.0,0.4255842]
[1746424867111,0.28410543,94832.0,94831.0,0.44094639]
[1746424867509,0.03001673,94832.0,94831.0,0.44094639]
[1746424867817,0.24090543,94832.0,94831.0,0.44094639]
[1746424869516,0.03001673,94832.0,94831.0,0.44094639]
[1746424869917,0.32414026,94836.0,94835.0,0.210882]
[1746424870218,0.36874026,94836.0,94835.0,0.330882]
[1746424870517,0.62870249,94836.0,94835.0,0.34624419]
[1746424871017,0.62970249,94836.0,94835.0,0.34624419]
[1746424872016,0.59808903,94836.0,94835.0,0.34624419]
[1746424872919,0.54546576,94836.0,94835.0,0.34624419]
[1746424873716,0.54546576,94836.0,94835.0,0.13536219]
[1746424873912,0.54746576,94836.0,94835.0,0.13536219]
[1746424874311,0.54763258,94836.0,94835.0,0.13536219]
[1746424874615,0.54763258,94836.0,94835.0,0.12]
[1746424874819,0.75307659,94836.0,94835.0,0.12]
[1746424875121,0.2109198,94818.0,94817.0,0.00158199]
[1746424875314,0.86708203,94818.0,94817.0,0.21250399]
[1746424876118,0.81445876,94818.0,94817.0,0.33250399]